{"text_format":"1","workbook":"xlsx","n_sheets":14,"sheets":["1. Forside","2. Samlet prisloft","3. Driftsomkostninger","4. Historiske investeringer","5. Gennemførte investeringer","6. Korrektion investeringer","7. Planlagte investeringer","8. 1-1 omkostninger","9. Miljø- og servicemål","10. Klimatilpasning","11. Nettofinansielle poster","12. Over- eller underdækning","13. Kontrol med indtægtsrammen","Ark1"],"not_rendered":{"charts":0,"images":0,"macros":1,"external_links":0,"defined_names":0,"comments":0,"pivot_tables":0},"unopened":[],"bounds":{"document_bytes":16777216,"sheet_cells":100000,"rows_first":2000,"rows_last":500,"rows_between":2000,"halvings":0,"cell_chars":16384,"cell_head_chars":4096},"cells_cut":0,"cells_raw":0,"read":"whole","date_system":"1900"}

{"sheet":"1. Forside","index":0,"n_rows":27,"n_cols":4,"rows_kept":27,"cut":false,"hidden":false,"merged":[[21,3,21,5],[20,3,20,5],[19,3,19,5],[18,3,18,5],[7,3,7,5],[12,3,12,5],[15,3,15,5],[16,3,16,5],[17,3,17,5],[26,3,26,5],[25,3,25,5],[24,3,24,5],[23,3,23,5],[22,3,22,5]]}
["Stevns Spildevand A/S"]
[]
[]
[]
[]
[]
[]
[null,null,null,"Bilag A"]
[]
[]
[]
[]
[null,null,null,"Indholdsfortegnelse"]
[]
[]
[null,null,"Fane nr. 2","Samlet prisloft "]
[null,null,"Fane nr. 3","Driftsomkostninger"]
[null,null,"Fane nr. 4","Historiske investeringer "]
[null,null,"Fane nr. 5","Gennemførte investeringer"]
[null,null,"Fane nr. 6","Korrektion investeringer"]
[null,null,"Fane nr. 7","Planlagte investeringer"]
[null,null,"Fane nr. 8","1:1 omkostninger"]
[null,null,"Fane nr. 9","Miljø- og servicemål"]
[null,null,"Fane nr. 10","Klimatilpasning"]
[null,null,"Fane nr. 11","Nettofinansielle poster"]
[null,null,"Fane nr. 12","Over- eller underdækning"]
[null,null,"Fane nr. 13","Kontrol med indtægtsrammen og oversigt over ekstraordinære effektiviseringsgevinster"]

{"sheet":"2. Samlet prisloft","index":1,"n_rows":40,"n_cols":6,"rows_kept":40,"cut":false,"hidden":false,"merged":[[3,1,3,5]]}
[{"$f":"'1. Forside'!A1","v":"Stevns Spildevand A/S"}]
[]
[]
[null,"Fane 2. Samlet prisloft for 2015"]
[]
[null,"Driftsomkostninger"]
[null,"Korrigerede driftsomkostninger i prisloftet for 2014",{"$f":"'3. Driftsomkostninger'!C20","v":17989370.520264998},"kr."]
[null,"Bortfald af væsentlige omkostninger",{"$f":"-'3. Driftsomkostninger'!C25","v":0},"kr."]
[null,"Korrektion for periodevise driftsomkostninger",{"$f":"'3. Driftsomkostninger'!C31","v":-626597},"kr."]
[null,"Korrektion for prisudviklingen 2014-2015",{"$f":"'3. Driftsomkostninger'!C37","v":13890.218816211998},"kr."]
[null,"Forhøjelse til effektivt niveau iht. benchmarkingen",{"$f":"'3. Driftsomkostninger'!C43","v":0},"kr."]
[null,"Korrektion for generelt effektiviseringskrav",{"$f":"-'3. Driftsomkostninger'!C49","v":-68686.206689165992},"kr."]
[null,"Korrektion for individuelt effektiviseringskrav",{"$f":"-'3. Driftsomkostninger'!C58","v":-416488.1766721055},"kr."]
[null,"Tillæg i henhold til § 8, stk. 2, nr. 1",1500000,"kr."]
[null,"Driftsomkostninger i alt",{"$f":"SUM(C7:C14)","v":18391489.355719939},"kr.",{"$f":"C15","v":18391489.355719939}," kr."]
[null,"Investeringer"]
[null,"Tillæg for historiske investeringer",{"$f":"'4. Historiske investeringer'!C9","v":27819531.50084573},"kr."]
[null,"Tillæg for gennemførte investeringer i 2011-2013",{"$f":"'5. Gennemførte investeringer'!F94","v":3703619.471044776},"kr."]
[null,"Korrektion af tillæg for planlagte investeringer vedrørende 2013  ",{"$f":"'6. Korrektion investeringer'!C10","v":77377.745273629669},"kr."]
[null,"Tillæg for planlagte investeringer i 2014 og 2015",{"$f":"'7. Planlagte investeringer'!F36","v":1741666.6666666667},"kr."]
[null,"Investeringstillæg i alt",{"$f":"SUM(C17:C20)","v":33342195.383830804},"kr.",{"$f":"C21","v":33342195.383830804}," kr."]
[null,"Øvrige omkostninger mv."]
[null,"Tillæg for 1:1 omkostninger i 2015",{"$f":"'8. 1-1 omkostninger'!C11","v":571000},"kr."]
[null,"Tillæg vedr. revisorerklæringer og DANVA/FVD-kontingent",{"$f":"'8. 1-1 omkostninger'!C17","v":62000},"kr."]
[null,"Korrektion ift. faktiske 1:1 omkostninger i 2013",{"$f":"'8. 1-1 omkostninger'!C23","v":-126505},"kr."]
[null,"Tillæg for driftsomkostninger til miljø- og servicemål i 2015",{"$f":"'9. Miljø- og servicemål'!C8","v":36000},"kr."]
[null,"Korrektion ift. faktiske driftsomkostninger til miljø- og servicemål i 2013",{"$f":"'9. Miljø- og servicemål'!C14","v":-14040},"kr."]
[null,"Tillæg for driftsomkostninger til medfinansiering af klimatilpasningsprojekter i 2015",{"$f":"'10. Klimatilpasning'!C9","v":0},"kr."]
[null,"Korrektion ift. faktiske omkostninger til medfinansiering af klimatilpasningsprojekter i 2013",{"$f":"'10. Klimatilpasning'!C15","v":0},"kr."]
[null,"Tillæg/fradrag for nettofinansielle poster i 2015",{"$f":"'11. Nettofinansielle poster'!C9","v":1160000},"kr."]
[null,"Korrektion ift. faktiske nettofinansielle poster i 2013",{"$f":"'11. Nettofinansielle poster'!C15","v":-2856359},"kr."]
[null,"Øvrige omkostninger mv. i alt",{"$f":"SUM(C23:C31)","v":-1167904},"kr.",{"$f":"C32","v":-1167904}," kr."]
[null,"Historisk over- eller underdækning"]
[null,"Tillæg/fradrag for over- eller underdækning til og med 2010",{"$f":"'12. Over- eller underdækning'!C11","v":0},"kr.",{"$f":"C34","v":0}," kr."]
[null,"Korrektion i forhold til tidligere indtægtsramme "]
[null,"Korrektion for overholdelse af indtægtsramme i prisloft 2013",{"$f":"'13. Kontrol med indtægtsrammen'!E27","v":1108336.4321385697},"kr.",{"$f":"C36","v":1108336.4321385697}," kr."]
[null,"Samlet prisloft"]
[null,"Indtægtsramme i 2015 ",null,null,{"$f":"SUM(E15:E36)","v":51674117.171689309}," kr."]
[null,"Debiteret vandmængde i 2013",null,null,828819," m3"]
[null,"Prisloft 2015",null,null,{"$f":"E38/E39","v":62.3466850683796}," kr./m3"]

{"sheet":"3. Driftsomkostninger","index":2,"n_rows":58,"n_cols":4,"rows_kept":58,"cut":false,"hidden":false,"merged":[[3,1,3,3],[6,2,8,2],[6,3,8,3]]}
[{"$f":"'1. Forside'!A1","v":"Stevns Spildevand A/S"}]
[]
[]
[null,"Fane 3. Driftsomkostninger "]
[]
[null,"Driftsomkostningerne i prisloftet for 2014"]
[null,"Korrigerede driftsomkostninger i prisloftet for 2013 (DOiPL 2013)",18499637,"kr."]
[null,"       inkl. tillæg iht. § 8, stk. 2, pkt. 1 på 827.192  kr."]
[null,"       samt midlertidigt tillæg iht. § 8, stk. 5 på 1.752.272 kr."]
[null,"Prisfremskrivning 1,5 pct.",{"$f":"0.015*SUM(C7:C9)","v":277494.55499999999},"kr."]
[null,"Generelt effektiviseringskrav (0 pct.)",0,"kr."]
[null,"Individuelt effektiviseringskrav ",-787762,"kr."]
[null,"Driftsomkostningerne i prisloftet for 2014 (DOiPL 2014)",{"$f":"SUM(C7:C12)","v":17989369.555},"kr."]
[]
[]
[null,"Forskel i § 8, stk. 2, pkt. 1 - tillæg"]
[null,"Godkendt tillæg i PL2014 prisfremskrevet til 2014-niveau",{"$f":"827192*1.015","v":839599.87999999989},"kr."]
[null,"Godkendt tillæg i PL2015 prisfremskrevet til 2014-niveau",839600.84526499978,"kr."]
[null,"Forskel",{"$f":"C18-C17","v":0.96526499988976866},"kr."]
[null,"Korrigerede driftsomkostninger i prisloftet for 2014",{"$f":"C13+C19","v":17989370.520264998},"kr."]
[]
[]
[null,"Korrektion for forventet bortfald af væsentlige omkostninger"]
[null,"Selskabets indberettede bortfald af væsentlige omkostninger inden 2015",0,"kr."]
[null,"Korrektion for forventet bortfald ",{"$f":"SUM(C24:C24)","v":0},"kr."]
[]
[]
[null,"Korrektion for periodevise driftsomkostninger"]
[null,"Del af godkendt tillæg i PL2013 vedrørende omkostninger i 2013",1100000,"kr."]
[null,"Faktisk udgift til periodevise driftsomkostninger i 2013",473403,"kr."]
[null,"Korrektion for periodevise driftsomkostninger",{"$f":"C30-C29","v":-626597},"kr."]
[]
[]
[null,"Korrektion for prisudviklingen fra 2014-2015"]
[null,"Driftsomkostningerne i prisloftet for 2014",{"$f":"C20-C25+C31","v":17362773.520264998},"kr."]
[null,"Prisudvikling 2014 - 2015 ",0.08,"pct."]
[null,"Korrektion for prisudvikling",{"$f":"C35*(C36/100)","v":13890.218816211998},"kr."]
[]
[]
[null,"Eventuel forhøjelse til effektivt niveau iht. benchmarkingen"]
[null,"Selskabets effektive driftsomkostninger iht. benchmarkingen",11822186.373188373,"kr."]
[null,"Selskabets pristalskorrigerede driftsomkostninger i 2015-niveau",{"$f":"C35+C37","v":17376663.739081211},"kr."]
[null,"Eventuel forhøjelse til effektivt niveau",{"$f":"IF(C42>C41,0,C41-C42)","v":0},"kr."]
[]
[]
[null,"Korrektion for generelt effektiviseringskrav"]
[null,"Driftsomkostningerne i prisloftet for 2014 ekskl. midlertidigt tillæg",{"$f":"C35-1752272","v":15610501.520264998},"kr. "]
[null,"Generelt effektiviseringskrav ",0.44,"pct."]
[null,"Endeligt generelt effektiviseringskrav",{"$f":"C47*(C48/100)","v":68686.206689165992},"kr. "]
[]
[]
[null,"Korrektion for individuelt effektiviseringskrav"]
[null,"Rå effektiviseringspotentiale",3906962.9893993209,"kr."]
[null,"Effektiviseringspotentiale efter eventuel korrektion for særlige forhold",3762029.7791822744,"kr."]
[null,"Effektiviseringspotentiale efter forsigtighedshensyn",1665952.706688422,"kr."]
[null,"Effektiviseringspotentiale efter eventuel korrektion for sammensætning af signifikante costdrivere",1665952.706688422,"kr. "]
[null,"Umiddelbart effektiviseringskrav",{"$f":"C56/4","v":416488.1766721055},"kr."]
[null,"Endeligt individuelt effektiviseringskrav",{"$f":"IF(C57>0.05*C35,0.05*C35,IF(C57<0.01*C35,0,C57))","v":416488.1766721055},"kr. "]

{"sheet":"4. Historiske investeringer","index":3,"n_rows":9,"n_cols":4,"rows_kept":9,"cut":false,"hidden":false,"merged":[[3,1,3,2]]}
[{"$f":"'3. Driftsomkostninger'!A1","v":"Stevns Spildevand A/S"}]
[]
[]
[null,"Fane 4. Historiske investeringer "]
[]
[null,"Tillæg for historiske investeringer "]
[null,"Værdi af selskabets materielle anlægsaktiver pr. 1. januar 2010",1187899484.9014654,"kr."]
[null,"Den årlige standardafskrivning på de materielle anlægsaktiver iht. POLKA",27819531.50084573,"kr."]
[null,"Tillæg i alt i 2015",{"$f":"C8","v":27819531.50084573},"kr."]

{"sheet":"5. Gennemførte investeringer","index":4,"n_rows":94,"n_cols":7,"rows_kept":94,"cut":false,"hidden":false,"merged":[[3,1,3,5],[6,5,6,6]]}
[{"$f":"'4. Historiske investeringer'!A1","v":"Stevns Spildevand A/S"}]
[]
[]
[null,"Fane 5. Gennemførte investeringer i 2010 - 2013 "]
[]
[null,"Tillæg for gennemførte investeringer i 2013"]
[null," Beskrivelse af investeringen   ","Årstal ","Std. levetid (år)   "," Anskaffelses-pris (kr.)","Afskrivning "]
[null,"Ledningsnet = Ø 200 mm",2013,75,8020419,{"$f":"E8/D8","v":106938.92},"kr."]
[null,"Ø 200 mm < Ledningsnet = Ø 500 mm",2013,75,4252089,56694.52,"kr."]
[null,"Ø 500 mm < Ledningsnet = Ø 800 mm",2013,75,3830328,51071.040000000001,"kr."]
[null,"Ø 800 mm < Ledningsnet = Ø 1000 mm",2013,75,3928502,52380.026666666665,"kr."]
[null,"Ø 1000 mm < Ledningsnet = Ø 1200 mm",2013,75,5209706,69462.746666666673,"kr."]
[null,"Strømpeforing Ø 200 mm < Ledningsnet = Ø 500 mm",2013,50,352199,7043.98,"kr."]
[null,"Brønde",2013,75,1365632,18208.426666666666,"kr."]
[null,"Stik",2013,75,2669844,35597.919999999998,"kr."]
[null,"Tryksatte minipumpestationer (husstandssystemer)",2013,30,6886663,229555.43333333332,"kr."]
[null,"Pumpestationer i brønde (< 6,25 m2), Konstruktioner",2013,50,1590141,31802.82,"kr."]
[null,"Pumpestationer i brønde (< 6,25 m2), Mek/EL",2013,20,799859,39992.949999999997,"kr."]
[null,"Pumpestationer i brønde (< 6,25 m2), SRO",2013,10,351836,35183.599999999999,"kr."]
[null,"Pumpestationer m. overbygning (< 20 m2), Konstruktioner",2013,50,5002,100.04,"kr."]
[null,"Forsinkelsesbassiner, lukkede uden automatisk rensning og SRO Miljøklasse B (mindre end 1.000 m3)",2013,50,253666,5073.32,"kr."]
[null,"Jordbassin Klasse A",2013,50,4029456,80589.119999999995,"kr."]
[null,"Tryksatte minipumpestationer (husstandssystemer)",2013,30,9550,318.33333333333331,"kr."]
[null,"Brønde",2013,75,175854,2344.7199999999998,"kr."]
[null,"Ø 500 mm < Ledningsnet = Ø 800 mm",2013,75,8749,116.65333333333334,"kr."]
[null,"Efterklaringstanke, Konstruktioner",2013,60,52180,869.66666666666663,"kr."]
[null,"Slutafvanding, slam - højteknologisk (centrifuger), Konstruktioner",2013,60,11322,188.7,"kr."]
[null,"Installationer \"mekaniske riste og SRO\" Miljøklasse A. (7-20 m2) - Mek/EL",2013,20,20908,1045.4000000000001,"kr."]
[null,"Installationer \"mekaniske riste og SRO\" Miljøklasse A. (7-20 m2) - SRO",2013,10,5250,525,"kr."]
[null,"Beluftningstanke, Konstruktioner",2013,60,144418,2406.9666666666667,"kr."]
[null,"Forklaring, SRO",2013,10,120969,12096.9,"kr."]
[null,"Forafvanding, slam, Konstruktion",2013,60,837809,13963.483333333334,"kr."]
[null,"Forafvanding, slam, Mek/EL",2013,20,83069,4153.45,"kr."]
[null,"Beluftningstanke, Mek/EL",2013,20,102125,5106.25,"kr."]
[null,"Beluftningstanke, Konstruktioner",2013,60,56550,942.5,"kr."]
[null,"Beluftningstanke, Mek/EL",2013,20,40432,2021.6,"kr."]
[null,"Beluftningstanke, SRO",2013,10,195853,19585.3,"kr."]
[null,"Køretøjer, personbil",2013,5,9150,1830,"kr."]
[null,"Køretøjer, små lastvogne (< 3.500 kg.)",2013,5,187766,37553.199999999997,"kr."]
[null,"Forafvanding, slam, Konstruktion",2013,25,254065,10162.6,"kr."]
[null,"Forafvanding, slam, Mek/EL",2013,25,45520,1820.8,"kr."]
[null,"Pumpestationer i brønde (< 6,25 m2), SRO",2013,10,68032,6803.2,"kr."]
[null,"Pumpestationer i brønde (< 6,25 m2), Mek/EL",2013,20,24284,1214.2,"kr."]
[null,"Pumpestationer i brønde (< 6,25 m2), Mek/EL",2013,20,1839,91.95,"kr."]
[null,"Pumpestationer i brønde (< 6,25 m2), SRO",2013,10,65402,6540.2,"kr."]
[null,"Pumpestationer i brønde (< 6,25 m2), Konstruktioner",2013,50,3498,69.959999999999994,"kr."]
[null,"Pumpestationer i brønde (< 6,25 m2), Mek/EL",2013,20,170830,8541.5,"kr."]
[null,"Pumpestationer i brønde (< 6,25 m2), SRO",2013,10,73368,7336.8,"kr."]
[null,"Pumpestationer m. overbygning (< 20 m2), Konstruktioner",2013,50,6727,134.54,"kr."]
[null,"Pumpestationer m. overbygning (< 20 m2), Mek/EL",2013,20,42299,2114.9499999999998,"kr."]
[null,"Pumpestationer m. overbygning (< 20 m2), SRO",2013,10,15869,1586.9,"kr."]
[null,"Pumpestationer m. overbygning (< 20 m2), Konstruktioner",2013,50,5306,106.12,"kr."]
[null,"Pumpestationer m. overbygning (< 20 m2), Mek/EL",2013,20,41728,2086.4,"kr."]
[null,"Pumpestationer m. overbygning (< 20 m2), SRO",2013,10,3072,307.2,"kr."]
[null,"Pumpestationer m. overbygning (< 20 m2), Mek/EL",2013,20,40100,2005,"kr."]
[null,"Pumpestationer m. overbygning (< 20 m2), SRO",2013,10,3072,307.2,"kr."]
[null,"Pumpestationer m. overbygning (< 20 m2), Konstruktioner",2013,50,6004,120.08,"kr."]
[null,"Pumpestationer m. overbygning (< 20 m2), Mek/EL",2013,20,149264,7463.2,"kr."]
[null,"Pumpestationer m. overbygning (< 20 m2), SRO",2013,10,78767,7876.7,"kr."]
[null,"Pumpestationer i brønde (< 6,25 m2), Konstruktioner",2013,50,60727,1214.54,"kr."]
[null,"Pumpestationer i brønde (< 6,25 m2), Mek/EL",2013,20,134011,6700.55,"kr."]
[null,"Pumpestationer i brønde (< 6,25 m2), SRO",2013,10,68499,6849.9,"kr."]
[null,"Pumpestationer i brønde (< 6,25 m2), Konstruktioner",2013,50,7325,146.5,"kr."]
[null,"Pumpestationer i underjordiske bygværker (",2013,20,340701,17035.05,"kr."]
[null,"Pumpestationer i underjordiske bygværker (",2013,10,126667,12666.7,"kr."]
[null,"Pumpestationer i brønde (< 6,25 m2), Mek/EL",2013,20,64434,3221.7,"kr."]
[null,"Pumpestationer i brønde (< 6,25 m2), SRO",2013,10,25504,2550.4,"kr."]
[null,"Pumpestationer m. overbygning (< 20 m2), Mek/EL",2013,20,9275,463.75,"kr."]
[null,"Pumpestationer m. overbygning (< 20 m2), SRO",2013,10,10119,1011.9,"kr."]
[null,"Pumpestationer i brønde (< 6,25 m2), Mek/EL",2013,20,63412,3170.6,"kr."]
[null,"Pumpestationer i brønde (< 6,25 m2), SRO",2013,10,25504,2550.4,"kr."]
[null,"Pumpestationer i brønde (< 6,25 m2), Konstruktioner",2013,50,2850,57,"kr."]
[null,"Pumpestationer i brønde (< 6,25 m2), Mek/EL",2013,20,63412,3170.6,"kr."]
[null,"Pumpestationer i brønde (< 6,25 m2), SRO",2013,10,25504,2550.4,"kr."]
[null,"Pumpestationer i brønde (< 6,25 m2), Konstruktioner",2013,50,9019,180.38,"kr."]
[null,"Pumpestationer i brønde (< 6,25 m2), Mek/EL",2013,20,76232,3811.6,"kr."]
[null,"Pumpestationer i brønde (< 6,25 m2), SRO",2013,10,25504,2550.4,"kr."]
[null,"Pumpestationer m. overbygning (< 20 m2), Mek/EL",2013,20,92330,4616.5,"kr."]
[null,"Pumpestationer m. overbygning (< 20 m2), SRO",2013,10,5162,516.20000000000005,"kr."]
[null,"Pumpestationer i underjordiske bygværker (",2013,20,9384,469.2,"kr."]
[null,"Pumpestationer i brønde (< 6,25 m2), Mek/EL",2013,20,53586,2679.3,"kr."]
[null,"Pumpestationer m. overbygning (< 20 m2), SRO",2013,10,10119,1011.9,"kr."]
[null,"Pumpestationer m. overbygning (< 20 m2), Konstruktioner",2013,50,11274,225.48,"kr."]
[null,"Pumpestationer m. overbygning (< 20 m2), Mek/EL",2013,20,45533,2276.65,"kr."]
[null,"Pumpestationer m. overbygning (< 20 m2), Mek/EL",2013,20,26917,1345.85,"kr."]
[null,"Pumpestationer m. overbygning (< 20 m2), Konstruktioner",2013,50,11274,225.48,"kr."]
[null,"Pumpestationer i brønde (< 6,25 m2), Mek/EL",2013,20,8639,431.95,"kr."]
[null,"Glasfibertank ",2013,20,23125,{"$f":"E88/D88","v":1156.25},"kr."]
[null,"Geotube, konstruktion ",2013,67,22164,330.80597014925371,"kr."]
[null,"Nødbrusere ",2013,20,16059,802.95,"kr."]
[null,"Oversvømmelseskort",2013,5,570985,114197,"kr."]
[null,"Tillæg for 2013 ",null,null,null,{"$f":"SUM(F8:F91)","v":1191640.3726368148},"kr."]
[null,"Tillæg for 2010 - 2012",null,null,null,2511979.098407961,"kr."]
[null,"Samlet tillæg for gennemførte investeringer",null,null,null,{"$f":"F92+F93","v":3703619.471044776},"kr."]

{"sheet":"6. Korrektion investeringer","index":5,"n_rows":10,"n_cols":4,"rows_kept":10,"cut":false,"hidden":false,"merged":[[3,1,3,3]]}
[{"$f":"'5. Gennemførte investeringer'!A1","v":"Stevns Spildevand A/S"}]
[]
[]
[null,"Fane 6. Korrektion af tillæg for planlagte investeringer"]
[]
[null,"Korrektion af tillæg for planlagte investeringer vedr. 2013"]
[null,"Tillæg for planlagte investeringer i 2013 i prisloft 2013",864796,"kr."]
[null,"Tillæg for planlagte investeringer i 2013 i prisloft 2014",1441107,"kr."]
[null,"Selskabets faktiske afskrivninger på gennemførte investeringer i 2013",{"$f":"'5. Gennemførte investeringer'!F92","v":1191640.3726368148},"kr."]
[null,"Korrektion af tillæg for planlagte investeringer vedr. 2013",{"$f":"C9-C7+C9-C8","v":77377.745273629669},"kr."]

{"sheet":"7. Planlagte investeringer","index":6,"n_rows":36,"n_cols":7,"rows_kept":36,"cut":false,"hidden":false,"merged":[[6,5,6,6],[3,1,3,6]]}
[{"$f":"'6. Korrektion investeringer'!A1","v":"Stevns Spildevand A/S"}]
[]
[]
[null,"Fane 7. Planlagte investeringer "]
[]
[null,"Tillæg for planlagte investeringer i 2014 og 2015"]
[null,"Beskrivelse af investeringen   ","Årstal ","Std. levetid (år)   ","Anskaffelses-pris (kr.)   ","Afskrivning"]
[null,"Ledningsnet = Ø 200 mm",2014,75,34170000,{"$f":"E8/D8","v":455600},"kr."]
[null,"Strømpeforing = Ø 200 mm",2014,50,352000,{"$f":"E9/D9","v":7040},"kr."]
[null,"Tryksatte minipumpestationer (husstandssystemer)",2014,30,2065000,68833.333333333328,"kr."]
[null,"Jordbassin Klasse A",2014,50,14621000,292420,"kr."]
[null,"Indløb-/udløbsarrangement",2014,75,1624000,21653.333333333332,"kr."]
[null,"Pumpestationer i brønde (< 6,25 m2), Konstruktioner",2014,50,256000,5120,"kr."]
[null,"Pumpestationer i brønde (< 6,25 m2), Mek/EL",2014,20,511000,25550,"kr."]
[null,"Pumpestationer i brønde (< 6,25 m2), SRO",2014,10,256000,25600,"kr."]
[null,"Indløb med riste, Konstruktioner",2014,60,855000,14250,"kr."]
[null,"Indløb med riste, Mek/EL",2014,20,67000,3350,"kr."]
[null,"Indløb med riste, SRO",2014,10,29000,2900,"kr."]
[null,"Køretøjer, entreprenørmaskiner",2014,5,140000,28000,"kr."]
[null,"Beluftningstanke, SRO",2014,10,182000,18200,"kr."]
[null,"Beluftningstanke, Konstruktioner",2014,60,345000,5750,"kr."]
[null,"Beluftningstanke, Mek/EL",2014,20,345000,17250,"kr."]
[null,"Ledningsnet = Ø 200 mm",2015,75,20512000,273493.33333333331,"kr."]
[null,"Strømpeforing = Ø 200 mm",2015,50,290000,5800,"kr."]
[null,"Tryksatte minipumpestationer (husstandssystemer)",2015,30,6612000,220400,"kr."]
[null,"Jordbassin Klasse A",2015,50,7062000,141240,"kr."]
[null,"Indløb-/udløbsarrangement",2015,75,784000,10453.333333333334,"kr."]
[null,"Pumpestationer i brønde (< 6,25 m2), Konstruktioner",2015,50,259000,5180,"kr."]
[null,"Pumpestationer i brønde (< 6,25 m2), Mek/EL",2015,20,519000,25950,"kr."]
[null,"Pumpestationer i brønde (< 6,25 m2), SRO",2015,10,259000,25900,"kr."]
[null,"Beluftningstanke, SRO",2015,10,184000,18400,"kr."]
[null,"Beluftningstanke, Konstruktioner",2015,60,350000,5833.333333333333,"kr."]
[null,"Beluftningstanke, Mek/EL",2015,20,350000,17500,"kr."]
[null,"Tillæg for 2014",null,null,null,{"$f":"SUMIF(C8:C33,\"2014\",F8:F33)","v":991516.66666666674},"kr."]
[null,"Tillæg for 2015",null,null,null,{"$f":"SUMIF(C8:C33,\"2015\",F8:F33)","v":750150},"kr."]
[null,"Tillæg i alt",null,null,null,{"$f":"F34+F35","v":1741666.6666666667},"kr."]

{"sheet":"8. 1-1 omkostninger","index":7,"n_rows":23,"n_cols":4,"rows_kept":23,"cut":false,"hidden":false,"merged":[[3,1,3,3],[13,1,13,3],[19,1,19,3]]}
[{"$f":"'7. Planlagte investeringer'!A1","v":"Stevns Spildevand A/S"}]
[]
[]
[null,"Fane 8. 1:1 omkostninger"]
[]
[null,"Tillæg for budgetterede 1:1 omkostninger i 2015"]
[null,"Betaling til Forsyningssekretariatet",33000,"kr."]
[null,"Spildevandsafgift",400000,"kr."]
[null,"Køb af varer og tjenesteydelser hos et andet prisloftreguleret vandselskab",28000,"kr."]
[null,"Ejendomsskatter",110000,"kr."]
[null,"Tillæg i alt ",{"$f":"SUM(C7:C10)","v":571000},"kr."]
[]
[]
[null,"Tillæg for budgetterede nødvendige udgifter til revisorerklæringer samt ordinært medlemskab af DANVA og FVD i 2015"]
[null,"Betaling for ordinært medlemskab af DANVA/FVD",38000,"kr."]
[null,"Betaling for revisorerklæringer",24000,"kr."]
[null,"Tillæg i alt ",{"$f":"SUM(C15:C16)","v":62000},"kr."]
[]
[]
[null,"Korrektion af tillæg for faktiske 1:1 omkostninger (inkl.  revisorerklæringer og ordinært medlemskab af DANVA/FVD) i 2013"]
[null,"Selskabets faktiske 1:1 omkostninger mv. i 2013, jf. reguleringsregnskabet",546495,"kr."]
[null,"Tillæg for budgetterede 1:1 omkostninger mv. i prisloft 2013",673000,"kr."]
[null,"Korrektion af tillæg for budgetterede 1:1 omkostninger mv. i 2013",{"$f":"C21-C22","v":-126505},"kr."]

{"sheet":"9. Miljø- og servicemål","index":8,"n_rows":74,"n_cols":5,"rows_kept":74,"cut":false,"hidden":false,"merged":[[3,1,3,3]]}
[{"$f":"'8. 1-1 omkostninger'!A1","v":"Stevns Spildevand A/S"}]
[]
[]
[null,"Fane 9. Driftsomkostninger til miljø- og servicemål "]
[]
[null,"Tillæg for budgetterede driftsomkostninger til miljø- og servicemål i 2015"]
[null,"Badevandskvalitet",36000,"kr."]
[null,"Tillæg i alt",{"$f":"SUM(C7:C7)","v":36000},"kr."]
[]
[]
[null,"Korrektion af tillæg for faktiske driftsomkostninger til miljø- og servicemål i 2013"]
[null,"Selskabets faktiske driftsomkostninger til miljø- og servicemål i 2013, jf. reguleringsregnskabet",35160,"kr."]
[null,"Tillæg for budgetterede driftsomkostninger til miljø- og servicemål i prisloft 2013",49200,"kr."]
[null,"Korrektion af tillæg for budgetterede driftsomkostninger til miljø- og servicemål i 2013",{"$f":"C12-C13","v":-14040},"kr."]
[]
[]
[]
[]
[]
[]
[]
[]
[]
[]
[]
[]
[]
[]
[]
[]
[]
[]
[]
[]
[]
[]
[]
[]
[]
[]
[]
[]
[]
[]
[]
[]
[]
[]
[]
[]
[]
[]
[]
[]
[]
[]
[]
[]
[]
[]
[]
[]
[]
[]
[]
[]
[]
[]
[]
[]
[]
[]
[]
[null,null,null,null,0]

{"sheet":"10. Klimatilpasning","index":9,"n_rows":15,"n_cols":4,"rows_kept":15,"cut":false,"hidden":false,"merged":[[3,1,3,3],[11,1,11,3],[6,1,6,3]]}
[{"$f":"'9. Miljø- og servicemål'!A1","v":"Stevns Spildevand A/S"}]
[]
[]
[null,"Fane 10. Medfinansiering af klimatilpasningsprojekter"]
[]
[]
[null,"Tillæg for budgetterede omkostninger til medfinansiering af klimatilpasningsprojekter i 2015"]
[null,null,0,"kr."]
[null,"Tillæg i alt",{"$f":" SUM(C8:C8)","v":0},"kr."]
[]
[]
[null,"Korrektion af tillæg for faktiske omkostninger til medfinansiering af klimatilpasningsprojekter i 2013"]
[null,"Selskabets faktiske driftsomkostninger til klimatilpasningsprojekter i 2013, jf. reguleringsregnskabet",0,"kr."]
[null,"Tillæg for budgetterede driftsomkostninger til klimatilpasningsprojekter i prisloft 2013",0,"kr."]
[null,"Korrektion af tillæg for budgetterede omkostninger til klimatilpasningsprojekter i 2013",{"$f":"C13-C14","v":0},"kr."]

{"sheet":"11. Nettofinansielle poster","index":10,"n_rows":15,"n_cols":4,"rows_kept":15,"cut":false,"hidden":false,"merged":[[3,1,3,3]]}
[{"$f":"'10. Klimatilpasning'!A1","v":"Stevns Spildevand A/S"}]
[]
[]
[null,"Fane 11. Nettofinansielle poster"]
[]
[null,"Tillæg for budgetterede nettofinansielle poster i 2015"]
[null,"Budgetterede renteudgifter og gebyrer i 2015",1260000,"kr."]
[null,"Budgetterede renteindtægter i 2015",100000,"kr."]
[null,"Tillæg/fradrag i alt",{"$f":"C7-C8","v":1160000},"kr."]
[]
[]
[null,"Korrektion af tillæg for faktiske nettofinansielle poster i 2013"]
[null,"Selskabets faktiske nettofinansielle poster i 2013, jf. reguleringsregnskabet",-559359,"kr."]
[null,"Tillæg for budgetterede nettofinansielle poster i prisloft 2013",2297000,"kr."]
[null,"Korrektion af tillæg for budgetterede nettofinansielle poster i 2013",{"$f":"C13-C14","v":-2856359},"kr."]

{"sheet":"12. Over- eller underdækning","index":11,"n_rows":11,"n_cols":4,"rows_kept":11,"cut":false,"hidden":true,"merged":[[3,1,3,3]]}
[{"$f":"'11. Nettofinansielle poster'!A1","v":"Stevns Spildevand A/S"}]
[]
[]
[null,"Fane 12. Over- eller underdækning til og med 2010"]
[]
[null,"Tillæg/fradrag for over- eller underdækning til og med 2010"]
[null,"Opgjort over- eller underdækning per 31. december 2010",null,"kr."]
[null,"Heraf beløb indregnet i prislofterne for 2012 - 2014",null,"kr."]
[null,"Endnu ikke indregnet over- eller underdækning",{"$f":"C7-C8","v":0},"kr."]
[null,"Resterende indregningsperiode (fastsat i prisloftet for 2012)",null,"år"]
[null,"Tillæg/fradrag i alt",{"$f":"IF(C7=0,0,C9/C10)","v":0},"kr."]

{"sheet":"13. Kontrol med indtægtsrammen","index":12,"n_rows":38,"n_cols":12,"rows_kept":38,"cut":false,"hidden":false,"merged":[[3,1,3,5],[30,1,30,4],[5,1,5,5]]}
[{"$f":"'12. Over- eller underdækning'!A1","v":"Stevns Spildevand A/S"}]
[]
[]
[null,"Fane 13. Korrektion for overholdelse af indtægtsrammen i prisloftet for 2013"]
[]
[null,"Samlet opgørelse vedrørende overholdelse af indtægtsrammen i prisloftet for 2013"]
[null,"Indtægtsramme i prisloftet for 2013",null,null,53092217.878670365,"kr."]
[null,"Ikke anvendt likviditet vedrørende investeringer i 2013"]
[null,"Tillæg for historiske investeringer ",28297274.446531795,"kr."]
[null,"Tillæg for gennemførte investeringer i 2011",1732907,"kr."]
[null,"Korrektion af tillæg for planlagte investeringer i 2011",-798419,"kr."]
[null,"Tillæg for planlagte investeringer i 2012 og 2013",2121970,"kr."]
[null,"Indtægter fra tilslutningsbidrag",1997796,"kr."]
[null,"Indtægter fra salg af anlægsaktiver",2052,"kr."]
[null,"Erstatninger vedr. anlægsaktiver mv.",0,"kr."]
[null,"Ekstraordinær effektiviseringsgevinst anvendt til investeringer",3969570,"kr."]
[null,"Udgifter til investeringer",-35247962,"kr."]
[null,"Ikke anvendt likviditet vedr. investeringer i alt",{"$f":"SUM(C9:C17)","v":2075188.446531795},"kr.",{"$f":"IF(C18<0,0,-C18)","v":-2075188.446531795},"kr."]
[null,"Ekstraordinære effektiviseringsgevinster anvendt til takstnedsættelse"]
[null,"Ekstraordinær effektiviseringsgevinst anvendt til takstnedsættelse",0,"kr.",{"$f":"-C20","v":0},"kr."]
[null,"Korrektion af ikke opkrævet tillæg fra 2011 i prisloft 2013"]
[null,"Korrektion af ikke opkrævet tillæg fra 2011 i prisloft 2013",0,"kr.",{"$f":"-C22","v":0},"kr."]
[null,"Indtægter fra primære aktiviteter mv."]
[null,"Indtægter fra kubikmetertakster, faste takster, særbidrag, målergebyrer samt andre takster og gebyrer",49908693,"kr."]
[null,"Andre indtægter i prisloftåret, som selskabet har opnået i forbindelse med eller som følge af selskabets primære aktiviteter",0,"kr."]
[null,"Indtægter fra primære aktiviteter mv. i alt",{"$f":"SUM(C24:C25)","v":49908693},"kr.",{"$f":"-C26","v":-49908693},"kr."]
[null,"Tillæg/fradrag i prisloftet for 2015 i alt",null,null,{"$f":"E7+E18+E20+E22+E26","v":1108336.4321385697},"kr."]
[]
[]
[]
[null,"Oversigt over ekstraordinære effektiviseringsgevinster"]
[]
[null,null,2012,null,2013,null,2014,null,2015,null,2016]
[null,"Indhentet ekstraordinær effektiviseringsgevinst",741199,"kr.",3228371,"kr.",null,"kr.",null,"kr.",null,"kr."]
[null,"Gevinst anvendt til investeringer",0,"kr.",3969570,"kr.",null,"kr.",null,"kr.",null,"kr."]
[null,"Gevinst anvendt til takstnedsættelse",0,"kr.",0,"kr.",null,"kr.",null,"kr.",null,"kr."]
[null,"Korrektion for  effektiviseringsgevinst der ikke er anvendt inden 4 år",0,"kr.",0,"kr.",null,"kr.",null,"kr.",{"$f":"IF(C38>SUM(E35:I36),C38-SUM(E35:I36),0)*-1","v":0},"kr."]
[null,"Resterende gevinst",{"$f":"C34-C35-C36","v":741199},"kr.",{"$f":"C38+E34-E35-E36","v":0},"kr.",{"$f":"E38+G34-G35-G36","v":0},"kr.",{"$f":"G38+I34-I35-I36","v":0},"kr.",{"$f":"K34-K35-K36+K37+I38","v":0},"kr."]

{"sheet":"Ark1","index":13,"n_rows":0,"n_cols":0,"rows_kept":0,"cut":false,"hidden":false,"merged":[]}